Cogmind - Beta 9.2 @@@ ROGUE MODE // 2019.11.29 @ 01:51:09 Player: GammaGradiation Result: Destroyed self with Rocket Launcher Performance ------------- Evolutions (0) 0 Regions Visited (2) 400 Robots Destroyed (20) 100 Value Destroyed (137) 137 Prototype IDs (0) 0 Alien Tech Used (0) 0 Bonus (0) 0 TOTAL SCORE: 637 Bonus ------- None Cogmind --------- Core Integrity 0/250 Matter 251/300 Energy 151/250 System Corruption 7% Temperature Cool (241) Movement Walking (180) Ox2 Location -10/Mines Parts ------- > --- POWER (1) -------- Ion Engine > --- PROPULSION (2) --- Aluminum Leg > --- UTILITY (2) ------ Large Storage Unit > --- WEAPON (2) ------- EM Shotgun Rocket Launcher > --- INVENTORY (10) --- Light Treads Light Treads Small Storage Unit Terrain Scanner Medium Armor Plating Medium Armor Plating EM Shotgun EM Shotgun Peak State ------------ > --- POWER ------------ Ion Engine > --- PROPULSION ------- Aluminum Leg Aluminum Leg > --- UTILITY ---------- Cooling System Large Storage Unit > --- WEAPON ----------- EM Shotgun EM Shotgun > --- INVENTORY -------- Light Treads Light Treads Small Storage Unit Terrain Scanner Medium Armor Plating Medium Armor Plating Medium Armor Plating EM Shotgun EM Shotgun Grenade Launcher [Rating: 11] Favorites ----------- Power Ion Engine Engine Ion Engine Propulsion Aluminum Leg Leg Aluminum Leg Utility Small Storage Unit Device Heat Sink Storage Small Storage Unit Protection Medium Armor Plating Weapon EM Shotgun Energy Gun EM Shotgun Energy Cannon Particle Cannon Launcher Rocket Launcher Build | -11 -10 -10 ------- Run | Scr Mat Min Slots Evolved . | . . . Power . | . . . Propulsion . | . . . Utility . | . . . Weapon . | . . . Parts Attached 24 | 7 13 4 Power 2 | 1 1 . Engine 2 | 1 1 . Core . | . . . Reactor . | . . . Propulsion 4 | 2 2 . Treads . | . . . Leg 4 | 2 2 . Wheel . | . . . Hover . | . . . Flight . | . . . Utility 5 | 1 3 1 Device 2 | . 2 . Storage 2 | 1 1 . Processor . | . . . Hackware . | . . . Protection 1 | . . 1 Artifact . | . . . Weapon 13 | 3 7 3 Energy Gun 8 | 3 4 1 Energy Cannon 2 | . 2 . Ballistic Gun . | . . . Ballistic Cannon . | . . . Launcher 3 | . 1 2 Special Weapon . | . . . Impact Weapon . | . . . Slashing Weapon . | . . . Piercing Weapon . | . . . Special Melee Weapon . | . . . Unidentified Prototypes . | . . . Parts Lost 10 | . 7 3 Power 1 | . 1 . Propulsion 3 | . 2 1 Utility 1 | . . 1 Weapon 5 | . 4 1 Highest Loss Streak 7 | . 7 3 Average Slot Usage (%) 88 | . 85 95 Engine 13 | . 13 14 Leg 25 | . 25 26 Device 6 | . 6 7 Storage 14 | . 14 14 Protection 1 | . . 4 Energy Gun 20 | . 18 24 Energy Cannon 4 | . 6 . Launcher 1 | . . 2 Naked Turns . | . . . Heaviest Build 34 | 12 30 34 Greatest Support 20 | 20 20 20 Greatest Overweight (x) 1 | . 1 1 Average Overweight (x) . | . . 1 Largest Inventory Capacity 10 | 6 10 10 Average Capacity 7 | 5 6 10 Most Carried 10 | 6 10 10 Average Carried 5 | 3 5 9 Final Capacity 10 | 6 10 10 Final Carried 10 | 6 10 8 Class Distribution -------------------- 100% | Mutant Dominant Class ---------------- Mutant | -10/Materials Mutant | -10/Mines Resources | -11 -10 -10 ----------- Run | Scr Mat Min Matter Collected 421 | 270 79 72 Remotely . | . . . Salvage Created 280 | . 150 130 Parts 10 | . 10 . Haulers Intercepted . | . . . Recyclers Shooed . | . . . Parts Field Recycled . | . . . Retrieved Matter . | . . . Parts Self-Destructed . | . . . Prevented . | . . . Kills | -11 -10 -10 ------- Run | Scr Mat Min Combat Hostiles Destroyed 19 | . 4 15 Guns 9 | . 2 7 Cannons 1 | . 1 . AOE 9 | . 1 8 Classes Destroyed 3 | . 2 1 Worker 1 | . 1 . Grunt 4 | . 4 . Assembled 15 | . . 15 Best Kill Streak 15 | . 4 15 Combat Bots Only 15 | . 3 15 Max Kills in Single Turn 3 | . 2 3 Gunslinging . | . . . Exploded 3 | . 1 3 Melee . | . . . Uniques/NPCs Destroyed . | . . . Combat | -11 -10 -10 -------- Run | Scr Mat Min Damage Taken 1271 | . 841 430 Core 264 | . 216 48 Absorbed by Shields . | . . . Core Remaining (%) 100 | 100 . . Volleys Fired 37 | . 19 18 Largest 2 | . 2 2 Hottest 136 | . 136 90 Shots Fired 58 | . 29 29 Gun 50 | . 26 24 Cannon 2 | . 2 . Launcher 6 | . 1 5 Special . | . . . Kinetic . | . . . Thermal 20 | . 20 . Explosive 6 | . 1 5 Electromagnetic 32 | . 8 24 Robot Hit Streak 9 | . 5 9 Robot Miss Streak 3 | . 2 3 Penetration Max . | . . . Secondary Targets 1 | . . 1 Max Gunslinging Chain 1 | . . 1 Shots Hit Robots 43 | . 20 23 Core Hits 43 | . 8 35 Critical Hits . | . . . Critical Kills . | . . . Critical Parts Destroyed . | . . . Melee Attacks . | . . . Impact . | . . . Slashing . | . . . Piercing . | . . . Sneak Attacks . | . . . Combat Hostiles . | . . . Follow-up Attacks . | . . . Damage Inflicted 1134 | . 406 728 Guns 429 | . 203 226 Cannons 41 | . 41 . Explosions 664 | . 162 502 Melee . | . . . Ramming . | . . . Kinetic . | . . . Thermal 238 | . 238 . Explosive 614 | . 112 502 Electromagnetic 282 | . 56 226 Impact . | . . . Slashing . | . . . Piercing . | . . . Highest Corruption 7 | . 7 7 Average Corruption 7 | . 7 7 Corruption Purged . | . . . Effects 8 | . 4 4 Message Errors 1 | . . 1 Matter Fused 1 | . 1 . Energy Discharges 3 | . 2 1 Targeting Errors 2 | . 1 1 Weapon Failures 1 | . . 1 Overload Shots . | . . . Overflow Damage . | . . . Projectiles . | . . . Explosions . | . . . Melee . | . . . Knockbacks . | . . . Impact . | . . . Kinetic . | . . . Secondary . | . . . Self-Inflicted Damage 83 | . 49 34 Shots 4 | . 2 2 Rammed . | . . . Targets Rammed . | . . . Kicked . | . . . Crushed . | . . . Highest Temperature 341 | . 262 341 Average Temperature 185 | . 152 219 Received Heat Transfer 334 | . 234 100 Effects 3 | . . 3 Shutdowns 1 | . . 1 Energy Bleed 2 | . . 2 Siege Activations . | . . . Robots Corrupted . | . . . Combat Hostiles . | . . . Parts Fried . | . . . Impact Corruptions . | . . . Robots Melted . | . . . Combat Hostiles . | . . . Parts Melted 1 | . 1 . Heat Transferred 524 | . 524 . Parts Sabotaged . | . . . Parts Stolen . | . . . Parts Stripped . | . . . Power Chain Reactions 1 | . 1 . Missiles Intercepted . | . . . Alert | -11 -10 -10 ------- Run | Scr Mat Min Peak Influence 78 | . 78 30 Average Influence 28 | . 35 27 Maximum Alert Level . | . . . Low Security (%) 100 | 100 100 100 Level 1 . | . . . Level 2 . | . . . Level 3 . | . . . Level 4 . | . . . Level 5 . | . . . High Security . | . . . Max Security . | . . . Squads Dispatched 2 | . 2 . Investigation 1 | . 1 . Extermination . | . . . Reinforcement 1 | . 1 . Assault . | . . . Garrison . | . . . Intercept . | . . . Construction Impeded . | . . . Haulers Reinforced . | . . . Stealth | -11 -10 -10 --------- Run | Scr Mat Min Distress Signals . | . . . Communications Jammed . | . . . Distress Signals . | . . . Times Spotted 28 | . 10 18 Peak Tracking Total 11 | . 7 11 Tactical Retreats 1 | . . 1 Traps | -11 -10 -10 ------- Run | Scr Mat Min Traps Triggered 1 | . 1 . Indirectly . | . . . Trap Hack Attempts . | . . . Triggered . | . . . Disarmed . | . . . Reprogrammed . | . . . Reused . | . . . Traps Extracted . | . . . Installed . | . . . Triggered . | . . . Machines | -11 -10 -10 ---------- Run | Scr Mat Min Machines Disabled . | . . . Max in Single Turn . | . . . Machines Sabotaged . | . . . Garrisons Compromised . | . . . Overloaded Fab Kills . | . . . Fab Network Shutdowns . | . . . Hacking | -11 -10 -10 --------- Run | Scr Mat Min Machines Accessed 3 | . 3 . Terminals 3 | . 3 . Fabricators . | . . . Repair Stations . | . . . Recycling Units . | . . . Scanalyzers . | . . . Garrison Access . | . . . Total Hacks 9 | . 9 . Successful 4 | . 4 . Failed 5 | . 5 . Catastrophic 2 | . 2 . Database Lockouts . | . . . Manual 5 | . 5 . Terminals 9 | . 9 . Fabricators . | . . . Repair Stations . | . . . Recycling Units . | . . . Scanalyzers . | . . . Garrison Access . | . . . Terminal Hacks 2 | . 2 . Part Schematic 2 | . 2 . Fabricator Hacks . | . . . Repair Station Hacks . | . . . Recycling Unit Hacks . | . . . Scanalyzer . | . . . Garrison Access Hacks . | . . . Unauthorized Hacks 4 | . 4 . Terminals 2 | . 2 . Botnet 2 | . 2 . Fabricators . | . . . Repair Stations . | . . . Recycling Units . | . . . Scanalyzers . | . . . Garrison Access . | . . . Data Cores Recovered . | . . . Used . | . . . Hacking Detections 2 | . 2 . Full Trace Events 1 | . 1 . Feedback Events . | . . . Feedback Blocked . | . . . Robot Schematics Acquired . | . . . Robots Built . | . . . Matter . | . . . Time . | . . . Total Robot Build Rating . | . . . Part Schematics Acquired 2 | . 2 . Parts Built . | . . . Matter . | . . . Time . | . . . Total Part Build Rating . | . . . Parts Repaired . | . . . Time . | . . . Parts Recycled . | . . . Recycled Matter . | . . . Retrieved Matter . | . . . Retrieved Components . | . . . Parts Scanalyzed . | . . . Part Schematics Acquired . | . . . Parts Damaged . | . . . Bothacking | -11 -10 -10 ------------ Run | Scr Mat Min Used RIF Installer . | . . . Robots Hacked . | . . . Non-combat . | . . . Combat . | . . . Robot Hacks Applied . | . . . Relay Couplers Released . | . . . Robots Rewired . | . . . Allies Hacked . | . . . Hacks Repelled . | . . . Allies | -11 -10 -10 -------- Run | Scr Mat Min Total Allies . | . . . Largest Group . | . . . Highest-Rated Group . | . . . Highest-Rated Ally . | . . . Total Orders . | . . . Ally Attacks . | . . . Total Damage . | . . . Kills . | . . . Allies Corrupted . | . . . Allies Melted . | . . . Intel | -11 -10 -10 ------- Run | Scr Mat Min Robot Analysis Total . | . . . Derelict Logs Recovered 2 | . . 2 Drone Launches . | . . . Drone Recoveries . | . . . Exploration | -11 -10 -10 ------------- Run | Scr Mat Min Turns Passed 463 | 60 287 116 Spaces Moved 227 | 40 145 42 Core 6 | 4 2 . Treads . | . . . Legs 221 | 36 143 42 Wheels . | . . . Hover . | . . . Flight . | . . . Fastest Speed 50 | 50 100 150 Average Speed 129 | 113 127 150 Slowest Speed 150 | 120 150 150 Overloaded Moves . | . . . Propulsion Burnouts . | . . . Robots Hopped . | . . . Cave-ins Triggered 1 | . 1 . Exploration Rate (%) 16 | 4 32 13 Regions Visited 2 Branch Regions 1 Pre-discovered Areas . | . . . Known Exits Taken . | . . . Unknown Exits Taken 2 | 1 1 . Scrap Searched . | . . . Spaces Dug . | . . . Terrain Destroyed 64 | . 15 49 Melee . | . . . Projectile . | . . . AOE 64 | . 15 49 Actions | -11 -10 -10 --------- Run | Scr Mat Min Total 337 | 52 218 67 Wait 27 | . 27 . Move 225 | 39 144 42 Hop . | . . . Pick Up 13 | 5 7 1 Fast Attach 15 | 7 8 . Attach 5 | . 3 2 Detach 4 | 1 3 . Swap 4 | . 2 2 Drop 7 | . 5 2 Fire 37 | . 19 18 Melee . | . . . Ram . | . . . Kick . | . . . Crush . | . . . Escape Stasis . | . . . Rewire . | . . . Trap . | . . . Miscellaneous . | . . . Route ------- -11/Scrapyard -10/Materials -10/Mines History --------- Turn | Location | Event 40 | -11/Scrapyard | Discovered new exit (range 14) 61 | -11/Scrapyard | Entered Materials 225 | -10/Materials | Crushed by falling debris 225 | -10/Materials | Core integrity fell below 50% 235 | -10/Materials | Core integrity fell below 20% 267 | -10/Materials | Lost 7 parts (1p2n4w) 278 | -10/Materials | Discovered new exit (range 16) 305 | -10/Materials | Build established: Mutant 348 | -10/Materials | Entered Mines 355 | -10/Mines | Received a Rocket Launcher from a helpful Derelict 363 | -10/Mines | Learned Materials non-interactive machine intel 375 | -10/Mines | Assembled infested the area 389 | -10/Mines | Learned location of 1 exit from Materials 464 | -10/Mines | Destroyed self with Rocket Launcher Last Messages --------------- 00434_ Acquired 9 matter. 00437_ Acquired 20 matter. 00438_ Overheating: Energy bleed (-14). 00439_ Acquired 6 matter. 00440_ as-51858 destroyed. 00445_ ,O9ZFC JCUBHW%J00N#FN9